[Event "GEO-ch 1st League 2021"]
[Site "Tbilisi"]
[Date "2021.04.05"]
[Round "8.11"]
[White "Khodashneli, Shota"]
[Black "Tskipurishvili, Daviti"]
[Result "1-0"]
[ECO "C10"]
[WhiteElo "1976"]
[BlackElo "1807"]
[Annotator "NA"]
[PlyCount "59"]
[EventDate "2021.03.29"]
[EventType "swiss"]
[EventCountry "GEO"]
[SourceTitle "playchess.com"]
[Source "ChessBase"]
[SourceQuality "1"]
[TimeControl "5400+30"]

1. e4 {[%emt 0:00:31]} e6 {[%emt 0:02:12]} 2. d4 {[%emt 0:01:09]} d5 {[%emt 0:00:12]} 3. Nc3 {[%emt 0:00:09]} dxe4 {[%emt 0:00:03]} 4. Nxe4 {[%emt 0:00:05]} Nd7 {[%emt 0:00:06]} 5. Nf3 {[%emt 0:03:07]} Ngf6 {[%emt 0:02:36]} 6. Nxf6+ {[%emt 0:01:07]} Nxf6 {[%emt 0:00:03]} 7. Bg5 {[%emt 0:00:44]} Be7 {[%emt 0:00:05]} 8. Bd3 {[%emt 0:00:06]} O-O {[%emt 0:00:27]} 9. Qe2 {[%emt 0:00:16]} Nd5 {[%emt 0:05:31]} 10. h4 {[%emt 0:02:24]} h6 {[%emt 0:04:03]} 11. Bd2 {[%emt 0:03:35]} Nb4 {[%emt 0:12:00]} 12. Bxb4 {[%emt 0:04:19]} Bxb4+ {[%emt 0:00:01]} 13. c3 {[%emt 0:00:05]} Bd6 {[%emt 0:00:23]} 14. O-O-O {[%emt 0:03:57]} Qe7 {[%emt 0:05:49]} 15. g4 {[%emt 0:02:47]} Bd7 {[%emt 0:02:05]} 16. g5 {[%emt 0:04:06]} Bc6 {[%emt 0:03:04]} 17. gxh6 {[%emt 0:02:50]} Bf4+ {[%emt 0:00:35]} 18. Kb1 {[%emt 0:00:14]} Bxh6 {[%emt 0:00:07]} 19. Rhg1 {[%emt 0:00:21]} Bxf3 {[%emt 0:13:57]} 20. Qxf3 {[%emt 0:00:06]} Rfb8 {[%emt 0:01:26]} 21. Rg3 {[%emt 0:01:18]} Kf8 {[%emt 0:01:06]} 22. Qe4 {[%emt 0:01:18]} Qd6 {[%emt 0:04:33]} 23. Rf3 {[%emt 0:02:10]} c6 {[%emt 0:02:55]} 24. Qg6 {[%emt 0:01:44]} Qe7 {[%emt 0:01:18]} 25. Re1 {[%emt 0:02:47]} Ke8 {[%emt 0:01:02]} 26. Qh5 {[%emt 0:00:05]} Kf8 {[%emt 0:04:18]} 27. Bc4 {[%emt 0:01:01]} Kg8 {[%emt 0:03:34]} 28. Rxf7 {[%emt 0:00:31]} Qxf7 {[%emt 0:00:07]} 29. Bxe6 {[%emt 0:00:04]} Rf8 {[%emt 0:00:01]} 30. d5 {[%emt 0:04:18]} 1-0

[Event "GEO-ch 1st League 2021"]
[Site "Tbilisi"]
[Date "2021.04.05"]
[Round "8.12"]
[White "Gogolashvili, Giorgi"]
[Black "Lomaia, Diana"]
[Result "0-1"]
[ECO "B22"]
[WhiteElo "1448"]
[BlackElo "1946"]
[Annotator "ChessBase"]
[PlyCount "102"]
[EventDate "2021.03.29"]
[EventType "swiss"]
[EventCountry "GEO"]
[SourceTitle "playchess.com"]
[Source "ChessBase"]
[SourceQuality "1"]
[TimeControl "5400+30"]

1. e4 {[%emt 0:00:00]} c5 {[%emt 0:00:00]} 2. d4 {[%emt 0:00:00]} cxd4 {[%emt 0:00:00]} 3. c3 {[%emt 0:00:00]} Nf6 {[%emt 0:00:07]} 4. e5 {[%emt 0:00:05]} Nd5 {[%emt 0:00:26]} 5. Nf3 {[%emt 0:00:10]} Nc6 {[%emt 0:00:25]} 6. Bc4 {[%emt 0:01:01]} Nb6 {[%emt 0:01:35]} 7. Bb3 {[%emt 0:00:11]} d6 {[%emt 0:00:26]} 8. exd6 {[%emt 0:00:55]} Qxd6 {[%emt 0:00:21]} 9. cxd4 {[%emt 0:00:34]} Be6 {[%emt 0:00:49]} 10. Nc3 {[%emt 0:07:08]} Bxb3 {[%emt 0:04:50]} 11. Qxb3 {[%emt 0:00:38]} e6 {[%emt 0:06:59]} 12. Be3 {[%emt 0:04:24]} Be7 {[%emt 0:02:11]} 13. O-O {[%emt 0:01:59]} O-O {[%emt 0:01:19]} 14. Rfd1 {[%emt 0:07:09]} Rfd8 {[%emt 0:10:49]} 15. Ne4 {[%emt 0:08:34]} Qd7 {[%emt 0:05:33]} 16. Nc5 {[%emt 0:06:07]} Bxc5 {[%emt 0:05:43]} 17. dxc5 {[%emt 0:00:20]} Nd5 {[%emt 0:00:08]} 18. Bf4 {[%emt 0:05:09]} a5 {[%emt 0:14:18]} 19. Bd6 {[%emt 0:11:26]} b6 {[%emt 0:03:53]} 20. Ng5 {[%emt 0:10:55]} bxc5 {[%emt 0:03:39]} 21. Bxc5 {[%emt 0:02:45]} h6 {[%emt 0:01:17]} 22. Ne4 {[%emt 0:02:27]} Rab8 {[%emt 0:03:40]} 23. Qg3 {[%emt 0:02:51]} Kh8 {[%emt 0:00:32]} 24. Rd2 {[%emt 0:06:21]} f5 {[%emt 0:10:46]} 25. Nd6 {[%emt 0:02:35]} Kh7 {[%emt 0:05:14]} 26. Re1 {[%emt 0:01:13]} Ncb4 {[%emt 0:04:15]} 27. h4 {[%emt 0:03:56]} Na6 {[%emt 0:03:32]} 28. Bd4 {[%emt 0:04:23]} Nac7 {[%emt 0:04:48]} 29. h5 {[%emt 0:04:31]} Rb4 {[%emt 0:00:09]} 30. Be5 {[%emt 0:03:38]} Rg4 {[%emt 0:00:12]} 31. Qa3 {[%emt 0:02:08]} Nb5 {[%emt 0:00:26]} 32. Nxb5 {[%emt 0:00:47]} Qxb5 {[%emt 0:00:01]} 33. Qd3 {[%emt 0:01:23]} Rxg2+ {[%emt 0:01:00]} 34. Kf1 {[%emt 0:00:43]} Qb7 {[%emt 0:00:37]} 35. Qf3 {[%emt 0:00:33]} Rg4 {[%emt 0:00:39]} 36. Bd4 {[%emt 0:00:25]} Qb5+ {[%emt 0:00:49]} 37. Qe2 {[%emt 0:00:33]} Qxe2+ {[%emt 0:00:52]} 38. Rexe2 {[%emt 0:00:27]} Nf4 {[%emt 0:00:34]} 39. Re3 {[%emt 0:00:34]} Rh4 {[%emt 0:01:42]} 40. f3 {[%emt 0:00:29]} Rh1+ {[%emt 0:00:12]} 41. Kf2 {[%emt 0:00:20]} Rh2+ {[%emt 0:00:09]} 42. Ke1 {[%emt 0:00:25]} Rxd2 {[%emt 0:00:33]} 43. Kxd2 {[%emt 0:00:03]} Rxd4+ {[%emt 0:00:03]} 44. Kc3 {[%emt 0:00:40]} Rd6 {[%emt 0:01:01]} 45. Kc4 {[%emt 0:00:16]} g6 {[%emt 0:00:36]} 46. hxg6+ {[%emt 0:00:42]} Kxg6 {[%emt 0:00:10]} 47. a3 {[%emt 0:00:42]} h5 {[%emt 0:00:54]} 48. b4 {[%emt 0:00:26]} axb4 {[%emt 0:00:03]} 49. axb4 {[%emt 0:00:01]} h4 {[%emt 0:00:27]} 50. Re1 {[%emt 0:00:50]} h3 {[%emt 0:00:31]} 51. Rg1+ {[%emt 0:00:26]} Kh5 {[%emt 0:06:15]} 0-1

[Event "GEO-ch 1st League 2021"]
[Site "Tbilisi"]
[Date "2021.04.06"]
[Round "9.1"]
[White "Volkov, Nika"]
[Black "Lortkipanidze, Nodar"]
[Result "0-1"]
[ECO "A86"]
[WhiteElo "2084"]
[BlackElo "2416"]
[Annotator "ChessBase"]
[PlyCount "52"]
[EventDate "2021.03.29"]
[EventType "swiss"]
[EventCountry "GEO"]
[SourceTitle "playchess.com"]
[Source "ChessBase"]
[SourceQuality "1"]
[TimeControl "5400+30"]

1. d4 {[%emt 0:00:00]} g6 {[%emt 0:00:00]} 2. c4 {[%emt 0:00:00]} f5 {[%emt 0:00:04]} 3. g3 {[%emt 0:00:57]} Nf6 {[%emt 0:00:06]} 4. Bg2 {[%emt 0:00:02]} Bg7 {[%emt 0:00:06]} 5. Nc3 {[%emt 0:00:07]} O-O {[%emt 0:00:07]} 6. Qc2 {[%emt 0:00:03]} d6 {[%emt 0:00:56]} 7. b3 {[%emt 0:00:44]} Nc6 {[%emt 0:02:15]} 8. e3 {[%emt 0:00:13]} e5 {[%emt 0:04:07]} 9. dxe5 {[%emt 0:00:08]} dxe5 {[%emt 0:01:02]} 10. Ba3 {[%emt 0:01:14]} Rf7 {[%emt 0:00:06]} 11. Nd5 {[%emt 0:02:41]} e4 {[%emt 0:04:57]} 12. O-O-O {[%emt 0:01:38]} Nxd5 {[%emt 0:00:52]} 13. cxd5 {[%emt 0:00:02]} Ne5 {[%emt 0:00:19]} 14. f3 {[%emt 0:02:10]} Nd3+ {[%emt 0:00:38]} 15. Rxd3 {[%emt 0:05:18]} exd3 {[%emt 0:00:06]} 16. Qxd3 {[%emt 0:00:04]} Be6 {[%emt 0:03:26]} 17. f4 {[%emt 0:02:55]} c6 {[%emt 0:05:16]} 18. d6 {[%emt 0:03:21]} Qa5 {[%emt 0:00:24]} 19. b4 {[%emt 0:00:33]} Qa4 {[%emt 0:00:34]} 20. Bf3 {[%emt 0:01:11]} Rd8 {[%emt 0:04:44]} 21. Ne2 {[%emt 0:06:32]} Rxd6 {[%emt 0:04:00]} 22. Nd4 {[%emt 0:00:02]} Bxd4 {[%emt 0:00:49]} 23. exd4 {[%emt 0:00:08]} Rxd4 {[%emt 0:00:14]} 24. Qe3 {[%emt 0:00:26]} Rc4+ {[%emt 0:00:09]} 25. Kd2 {[%emt 0:00:50]} Qc2+ {[%emt 0:00:08]} 26. Ke1 {[%emt 0:00:02]} Qc3+ {[%emt 1:07:35]} 0-1

[Event "GEO-ch 1st League 2021"]
[Site "Tbilisi"]
[Date "2021.04.06"]
[Round "9.2"]
[White "Arabidze, Meri"]
[Black "Azaladze, Shota"]
[Result "1-0"]
[ECO "E09"]
[WhiteElo "2437"]
[BlackElo "2439"]
[Annotator "ChessBase"]
[PlyCount "173"]
[EventDate "2021.03.29"]
[EventType "swiss"]
[EventCountry "GEO"]
[SourceTitle "playchess.com"]
[Source "ChessBase"]
[SourceQuality "1"]
[TimeControl "5400+30"]

1. d4 {[%emt 0:00:00]} d5 {[%emt 0:00:00]} 2. c4 {[%emt 0:00:19]} e6 {[%emt 0:00:00]} 3. Nf3 {[%emt 0:00:48]} Nf6 {[%emt 0:00:31]} 4. g3 {[%emt 0:00:16]} Be7 {[%emt 0:02:00]} 5. Bg2 {[%emt 0:00:05]} O-O {[%emt 0:00:05]} 6. O-O {[%emt 0:00:06]} Nbd7 {[%emt 0:03:19]} 7. Qc2 {[%emt 0:01:34]} c6 {[%emt 0:00:44]} 8. b3 {[%emt 0:02:38]} b6 {[%emt 0:03:06]} 9. Bb2 {[%emt 0:04:39]} Bb7 {[%emt 0:04:52]} 10. Nc3 {[%emt 0:03:14]} Rc8 {[%emt 0:03:43]} 11. e4 {[%emt 0:02:03]} dxe4 {[%emt 0:03:11]} 12. Nxe4 {[%emt 0:03:03]} c5 {[%emt 0:09:03]} 13. Nxf6+ {[%emt 0:02:38]} Bxf6 {[%emt 0:00:47]} 14. Ng5 {[%emt 0:08:41]} Bxg5 {[%emt 0:01:20]} 15. Bxb7 {[%emt 0:00:02]} Rc7 {[%emt 0:00:49]} 16. Be4 {[%emt 0:00:30]} f5 {[%emt 0:12:43]} 17. Bg2 {[%emt 0:01:15]} cxd4 {[%emt 0:00:07]} 18. Bxd4 {[%emt 0:00:45]} Bf6 {[%emt 0:07:36]} 19. Rad1 {[%emt 0:02:03]} Qe7 {[%emt 0:00:45]} 20. Be3 {[%emt 0:06:57]} b5 {[%emt 0:06:17]} 21. Rfe1 {[%emt 0:04:46]} bxc4 {[%emt 0:09:06]} 22. Bf4 {[%emt 0:07:50]} e5 {[%emt 0:00:11]} 23. Qxf5 {[%emt 0:06:13]} c3 {[%emt 0:01:06]} 24. Be3 {[%emt 0:03:38]} g6 {[%emt 0:06:13]} 25. Qd3 {[%emt 0:05:31]} Kg7 {[%emt 0:01:49]} 26. Rc1 {[%emt 0:04:59]} Rfc8 {[%emt 0:03:24]} 27. Qb5 {[%emt 0:02:02]} Nf8 {[%emt 0:01:54]} 28. Bh3 {[%emt 0:05:31]} Ne6 {[%emt 0:01:06]} 29. f4 {[%emt 0:04:26]} e4 {[%emt 0:03:29]} 30. Qd5 {[%emt 0:01:26]} Re8 {[%emt 0:00:25]} 31. Qxe4 {[%emt 0:03:30]} Nd4 {[%emt 0:05:24]} 32. Qxd4 {[%emt 0:02:20]} c2 {[%emt 0:05:46]} 33. Qd2 {[%emt 0:01:58]} Rd8 {[%emt 0:04:15]} 34. Qf2 {[%emt 0:01:28]} Qe4 {[%emt 0:00:08]} 35. Bg2 {[%emt 0:01:32]} Qd3 {[%emt 0:00:18]} 36. Bf1 {[%emt 0:00:25]} Qe4 {[%emt 0:01:09]} 37. Bc4 {[%emt 0:01:58]} Bc3 {[%emt 0:00:25]} 38. Rf1 {[%emt 0:04:19]} Re8 {[%emt 0:00:11]} 39. Rxc2 {[%emt 0:01:20]} Qxe3 {[%emt 0:00:02]} 40. Qxe3 {[%emt 0:00:19]} Rxe3 {[%emt 0:00:02]} 41. Rd1 {[%emt 0:00:48]} Ba5 {[%emt 0:00:59]} 42. Kg2 {[%emt 0:00:16]} h5 {[%emt 0:00:22]} 43. Rd6 {[%emt 0:02:19]} Rce7 {[%emt 0:00:33]} 44. Bd3 {[%emt 0:00:38]} h4 {[%emt 0:01:48]} 45. Rxg6+ {[%emt 0:00:39]} Kf7 {[%emt 0:00:01]} 46. Bf5 {[%emt 0:00:12]} Re2+ {[%emt 0:00:53]} 47. Kh3 {[%emt 0:00:15]} Bb6 {[%emt 0:00:27]} 48. Rh6 {[%emt 0:00:59]} Rxc2 {[%emt 0:00:24]} 49. Bxc2 {[%emt 0:00:01]} Re2 {[%emt 0:00:07]} 50. Bd3 {[%emt 0:00:46]} Rxa2 {[%emt 0:00:24]} 51. Rxh4 {[%emt 0:00:46]} Bg1 {[%emt 0:00:02]} 52. Kg4 {[%emt 0:00:29]} Bxh2 {[%emt 0:00:07]} 53. Kf3 {[%emt 0:00:26]} Bg1 {[%emt 0:00:49]} 54. Rh7+ {[%emt 0:00:06]} Kg8 {[%emt 0:00:43]} 55. Rh1 {[%emt 0:00:41]} Bb6 {[%emt 0:00:12]} 56. g4 {[%emt 0:00:27]} a5 {[%emt 0:00:13]} 57. Bb5 {[%emt 0:00:32]} Rf2+ {[%emt 0:00:15]} 58. Kg3 {[%emt 0:00:29]} Rc2 {[%emt 0:00:05]} 59. Rf1 {[%emt 0:00:36]} Kg7 {[%emt 0:00:20]} 60. g5 {[%emt 0:00:42]} Bc7 {[%emt 0:00:06]} 61. Ba4 {[%emt 0:00:37]} Kg6 {[%emt 0:00:41]} 62. Be8+ {[%emt 0:00:02]} Kf5 {[%emt 0:00:36]} 63. Bd7+ {[%emt 0:00:04]} Kg6 {[%emt 0:00:31]} 64. Rf3 {[%emt 0:00:21]} Rd2 {[%emt 0:00:32]} 65. Bb5 {[%emt 0:00:45]} Rd4 {[%emt 0:00:39]} 66. Kg4 {[%emt 0:00:22]} Kg7 {[%emt 0:00:04]} 67. Ba4 {[%emt 0:00:54]} Kg6 {[%emt 0:00:45]} 68. Be8+ {[%emt 0:00:01]} Kg7 {[%emt 0:00:01]} 69. Kf5 {[%emt 0:00:56]} Bb8 {[%emt 0:01:17]} 70. Kg4 {[%emt 0:00:57]} Rd8 {[%emt 0:01:01]} 71. Ba4 {[%emt 0:00:22]} Rd4 {[%emt 0:00:02]} 72. Bc6 {[%emt 0:00:19]} Kg6 {[%emt 0:00:14]} 73. Be8+ {[%emt 0:00:03]} Kg7 {[%emt 0:00:02]} 74. Kf5 {[%emt 0:00:18]} Rd8 {[%emt 0:00:08]} 75. Re3 {[%emt 0:01:08]} Rd5+ {[%emt 0:02:21]} 76. Ke4 {[%emt 0:00:16]} Rd1 {[%emt 0:01:52]} 77. f5 {[%emt 0:01:06]} Kf8 {[%emt 0:00:54]} 78. Bb5 {[%emt 0:00:33]} Rg1 {[%emt 0:00:05]} 79. Rc3 {[%emt 0:00:21]} Rg4+ {[%emt 0:00:54]} 80. Kd5 {[%emt 0:00:16]} Bg3 {[%emt 0:00:32]} 81. Rc8+ {[%emt 0:00:53]} Kf7 {[%emt 0:00:05]} 82. Be8+ {[%emt 0:00:29]} Kg7 {[%emt 0:00:10]} 83. f6+ {[%emt 0:00:09]} Kh7 {[%emt 0:00:02]} 84. g6+ {[%emt 0:00:14]} Kh6 {[%emt 0:00:01]} 85. Bf7 {[%emt 0:01:10]} Rg5+ {[%emt 0:00:47]} 86. Ke6 {[%emt 0:00:26]} Re5+ {[%emt 0:00:12]} 87. Kd7 {[%emt 0:00:02]} 1-0

[Event "GEO-ch 1st League 2021"]
[Site "Tbilisi"]
[Date "2021.04.06"]
[Round "9.3"]
[White "Petriashvili, Nikoloz"]
[Black "Akhvlediani, Irakli"]
[Result "1/2-1/2"]
[ECO "B40"]
[WhiteElo "2425"]
[BlackElo "2355"]
[Annotator "ChessBase"]
[PlyCount "97"]
[EventDate "2021.03.29"]
[EventType "swiss"]
[EventCountry "GEO"]
[SourceTitle "playchess.com"]
[Source "ChessBase"]
[SourceQuality "1"]
[TimeControl "5400+30"]

1. e4 {[%emt 0:00:00]} c5 {[%emt 0:00:00]} 2. Nf3 {[%emt 0:00:00]} e6 {[%emt 0:00:05]} 3. b3 {[%emt 0:00:53]} b6 {[%emt 0:00:38]} 4. Bb2 {[%emt 0:02:04]} Bb7 {[%emt 0:00:05]} 5. Nc3 {[%emt 0:01:04]} Nf6 {[%emt 0:04:29]} 6. e5 {[%emt 0:01:26]} Ng4 {[%emt 0:00:10]} 7. h3 {[%emt 0:00:36]} Nh6 {[%emt 0:00:02]} 8. Bd3 {[%emt 0:01:58]} Nc6 {[%emt 0:08:32]} 9. Qe2 {[%emt 0:01:41]} f5 {[%emt 0:26:19]} 10. exf6 {[%emt 0:01:31]} gxf6 {[%emt 0:00:40]} 11. O-O-O {[%emt 0:01:56]} Bg7 {[%emt 0:04:44]} 12. g4 {[%emt 0:08:40]} Qe7 {[%emt 0:02:38]} 13. Ba6 {[%emt 0:01:03]} Bxa6 {[%emt 0:09:09]} 14. Qxa6 {[%emt 0:00:02]} O-O {[%emt 0:00:26]} 15. Rhe1 {[%emt 0:00:27]} f5 {[%emt 0:12:51]} 16. g5 {[%emt 0:00:54]} Nf7 {[%emt 0:00:17]} 17. h4 {[%emt 0:08:38]} Qd6 {[%emt 0:01:03]} 18. Qc4 {[%emt 0:00:30]} a6 {[%emt 0:02:10]} 19. Ne2 {[%emt 0:07:22]} b5 {[%emt 0:05:30]} 20. Qf4 {[%emt 0:00:13]} Bxb2+ {[%emt 0:02:22]} 21. Kxb2 {[%emt 0:00:02]} Qxf4 {[%emt 0:00:16]} 22. Nxf4 {[%emt 0:00:02]} e5 {[%emt 0:03:22]} 23. Nd5 {[%emt 0:00:50]} e4 {[%emt 0:01:38]} 24. Ng1 {[%emt 0:02:51]} Nfe5 {[%emt 0:02:14]} 25. d3 {[%emt 0:04:45]} exd3 {[%emt 0:00:23]} 26. f4 {[%emt 0:08:29]} dxc2 {[%emt 0:00:58]} 27. Kxc2 {[%emt 0:00:04]} Ng4 {[%emt 0:01:29]} 28. Ne7+ {[%emt 0:00:17]} Nxe7 {[%emt 0:00:05]} 29. Rxe7 {[%emt 0:00:03]} Rad8 {[%emt 0:03:15]} 30. Rdxd7 {[%emt 0:04:28]} Ne3+ {[%emt 0:00:04]} 31. Kd3 {[%emt 0:01:31]} Rxd7+ {[%emt 0:00:43]} 32. Rxd7 {[%emt 0:00:02]} Ng2 {[%emt 0:00:04]} 33. Ne2 {[%emt 0:00:33]} Re8 {[%emt 0:00:32]} 34. Rc7 {[%emt 0:02:08]} Rd8+ {[%emt 0:01:08]} 35. Kc3 {[%emt 0:00:25]} b4+ {[%emt 0:02:35]} 36. Kc4 {[%emt 0:03:50]} Rd2 {[%emt 0:00:02]} 37. Re7 {[%emt 0:00:11]} Rc2+ {[%emt 0:00:33]} 38. Kd3 {[%emt 0:00:05]} Rxa2 {[%emt 0:00:10]} 39. h5 {[%emt 0:01:21]} Rb2 {[%emt 0:02:31]} 40. h6 {[%emt 0:03:23]} Rxb3+ {[%emt 0:00:08]} 41. Kd2 {[%emt 0:00:05]} c4 {[%emt 0:01:05]} 42. Rg7+ {[%emt 0:01:00]} Kf8 {[%emt 0:00:24]} 43. Rxh7 {[%emt 0:02:10]} Rd3+ {[%emt 0:00:01]} 44. Kc1 {[%emt 0:00:07]} Ne3 {[%emt 0:01:39]} 45. g6 {[%emt 0:06:18]} Rd1+ {[%emt 0:01:26]} 46. Kb2 {[%emt 0:00:01]} Rd2+ {[%emt 0:00:48]} 47. Kb1 {[%emt 0:00:25]} c3 {[%emt 0:02:32]} 48. Rf7+ {[%emt 0:00:48]} Ke8 {[%emt 0:00:01]} 49. h7 {[%emt 0:00:12]} 1/2-1/2

[Event "GEO-ch 1st League 2021"]
[Site "Tbilisi"]
[Date "2021.04.06"]
[Round "9.4"]
[White "Morchiashvili, Bachana"]
[Black "Nigalidze, Gaioz"]
[Result "1/2-1/2"]
[ECO "D93"]
[WhiteElo "2313"]
[BlackElo "2480"]
[Annotator "ChessBase"]
[PlyCount "138"]
[EventDate "2021.03.29"]
[EventType "swiss"]
[EventCountry "GEO"]
[SourceTitle "playchess.com"]
[Source "ChessBase"]
[SourceQuality "1"]
[TimeControl "5400+30"]

1. d4 {[%emt 0:00:00]} Nf6 {[%emt 0:00:00]} 2. Nf3 {[%emt 0:00:00]} g6 {[%emt 0:00:00]} 3. c4 {[%emt 0:00:00]} Bg7 {[%emt 0:00:00]} 4. Nc3 {[%emt 0:00:00]} d5 {[%emt 0:00:00]} 5. Bf4 {[%emt 0:07:57]} c6 {[%emt 0:00:13]} 6. e3 {[%emt 0:00:15]} O-O {[%emt 0:00:06]} 7. Be2 {[%emt 0:02:04]} Be6 {[%emt 0:00:58]} 8. Ng5 {[%emt 0:08:44]} Bf5 {[%emt 0:00:09]} 9. O-O {[%emt 0:00:25]} h6 {[%emt 0:00:24]} 10. Nf3 {[%emt 0:00:03]} Nbd7 {[%emt 0:00:43]} 11. cxd5 {[%emt 0:09:00]} cxd5 {[%emt 0:00:04]} 12. Qb3 {[%emt 0:01:03]} Qb6 {[%emt 0:00:08]} 13. Qxb6 {[%emt 0:06:51]} Nxb6 {[%emt 0:02:15]} 14. Rfc1 {[%emt 0:05:21]} Rac8 {[%emt 0:00:05]} 15. Nd2 {[%emt 0:02:19]} g5 {[%emt 0:01:37]} 16. Be5 {[%emt 0:05:45]} e6 {[%emt 0:03:27]} 17. Nb5 {[%emt 0:02:04]} Rxc1+ {[%emt 0:00:24]} 18. Rxc1 {[%emt 0:00:09]} Rc8 {[%emt 0:00:02]} 19. Nb3 {[%emt 0:04:42]} Rxc1+ {[%emt 0:00:57]} 20. Nxc1 {[%emt 0:00:02]} Nc8 {[%emt 0:00:05]} 21. Nb3 {[%emt 0:04:06]} Ne8 {[%emt 0:02:12]} 22. Na5 {[%emt 0:03:23]} a6 {[%emt 0:01:56]} 23. Nc3 {[%emt 0:06:30]} Ned6 {[%emt 0:02:12]} 24. Na4 {[%emt 0:02:16]} f6 {[%emt 0:00:57]} 25. Bxd6 {[%emt 0:01:48]} Nxd6 {[%emt 0:00:05]} 26. Nc5 {[%emt 0:01:38]} b6 {[%emt 0:00:36]} 27. Ncb7 {[%emt 0:01:38]} Nxb7 {[%emt 0:04:59]} 28. Nxb7 {[%emt 0:00:04]} a5 {[%emt 0:00:48]} 29. Nd6 {[%emt 0:01:30]} Bb1 {[%emt 0:02:40]} 30. a3 {[%emt 0:02:17]} f5 {[%emt 0:00:13]} 31. Nc8 {[%emt 0:07:01]} e5 {[%emt 0:00:06]} 32. dxe5 {[%emt 0:00:33]} Bxe5 {[%emt 0:00:05]} 33. b4 {[%emt 0:00:54]} axb4 {[%emt 0:01:33]} 34. axb4 {[%emt 0:00:06]} d4 {[%emt 0:00:11]} 35. Ne7+ {[%emt 0:06:39]} Kg7 {[%emt 0:00:08]} 36. Nc6 {[%emt 0:00:08]} d3 {[%emt 0:00:05]} 37. Bxd3 {[%emt 0:01:45]} Bxh2+ {[%emt 0:00:06]} 38. Kxh2 {[%emt 0:00:01]} Bxd3 {[%emt 0:00:08]} 39. f4 {[%emt 0:02:12]} Kf6 {[%emt 0:01:23]} 40. Ne5 {[%emt 0:00:08]} Bb5 {[%emt 0:00:23]} 41. Kg3 {[%emt 0:00:36]} Ke6 {[%emt 0:00:46]} 42. Nf3 {[%emt 0:01:22]} Kf6 {[%emt 0:00:05]} 43. Kf2 {[%emt 0:00:35]} g4 {[%emt 0:03:58]} 44. Ne5 {[%emt 0:00:22]} Ke6 {[%emt 0:01:07]} 45. e4 {[%emt 0:01:03]} h5 {[%emt 0:01:12]} 46. exf5+ {[%emt 0:02:28]} Kxf5 {[%emt 0:01:00]} 47. g3 {[%emt 0:00:49]} Ke4 {[%emt 0:00:44]} 48. Nf7 {[%emt 0:01:11]} Bd7 {[%emt 0:02:52]} 49. Ne5 {[%emt 0:00:05]} Be6 {[%emt 0:00:34]} 50. Nc6 {[%emt 0:02:34]} b5 {[%emt 0:09:00]} 51. Ne5 {[%emt 0:00:48]} Bf5 {[%emt 0:02:08]} 52. Nf7 {[%emt 0:00:20]} Kd4 {[%emt 0:00:33]} 53. Ke2 {[%emt 0:00:33]} Be6 {[%emt 0:02:42]} 54. Nd6 {[%emt 0:00:50]} Bd7 {[%emt 0:00:08]} 55. Kd2 {[%emt 0:00:34]} Kd5 {[%emt 0:01:22]} 56. Nf7 {[%emt 0:00:12]} Ke4 {[%emt 0:01:00]} 57. Ng5+ {[%emt 0:00:59]} Kd4 {[%emt 0:00:48]} 58. Nf7 {[%emt 0:00:05]} h4 {[%emt 0:04:22]} 59. gxh4 {[%emt 0:00:15]} Ke4 {[%emt 0:00:02]} 60. h5 {[%emt 0:01:46]} g3 {[%emt 0:01:56]} 61. Ke2 {[%emt 0:00:57]} Kxf4 {[%emt 0:00:19]} 62. h6 {[%emt 0:00:10]} Bf5 {[%emt 0:00:04]} 63. Kf1 {[%emt 0:00:29]} Bd3+ {[%emt 0:01:44]} 64. Kg1 {[%emt 0:00:27]} Bh7 {[%emt 0:00:21]} 65. Nd6 {[%emt 0:00:24]} Kg5 {[%emt 0:00:17]} 66. Nxb5 {[%emt 0:00:18]} Kxh6 {[%emt 0:00:04]} 67. Nd6 {[%emt 0:00:45]} Bd3 {[%emt 0:02:44]} 68. Kg2 {[%emt 0:00:13]} Kg6 {[%emt 0:00:05]} 69. Kxg3 {[%emt 0:00:14]} Kf6 {[%emt 0:00:07]} 1/2-1/2

[Event "GEO-ch 1st League 2021"]
[Site "Tbilisi"]
[Date "2021.04.06"]
[Round "9.5"]
[White "Adamia, Jaba"]
[Black "Qalichava, Akaki"]
[Result "0-1"]
[ECO "E07"]
[WhiteElo "1899"]
[BlackElo "1877"]
[Annotator "NA"]
[PlyCount "64"]
[EventDate "2021.03.29"]
[EventType "swiss"]
[EventCountry "GEO"]
[SourceTitle "playchess.com"]
[Source "ChessBase"]
[SourceQuality "1"]
[TimeControl "5400+30"]

1. d4 {[%emt 0:00:00]} Nf6 {[%emt 0:13:40]} 2. c4 {[%emt 0:00:00]} e6 {[%emt 0:00:04]} 3. Nf3 {[%emt 0:00:11]} b6 {[%emt 0:00:05]} 4. g3 {[%emt 0:00:20]} Ba6 {[%emt 0:00:06]} 5. Nbd2 {[%emt 0:00:59]} d5 {[%emt 0:00:05]} 6. Bg2 {[%emt 0:09:08]} c6 {[%emt 0:00:27]} 7. O-O {[%emt 0:03:44]} Be7 {[%emt 0:01:07]} 8. b3 {[%emt 0:02:42]} Nbd7 {[%emt 0:02:03]} 9. Bb2 {[%emt 0:01:46]} Rc8 {[%emt 0:03:04]} 10. Re1 {[%emt 0:04:28]} O-O {[%emt 0:08:52]} 11. e4 {[%emt 0:06:01]} dxe4 {[%emt 0:00:54]} 12. Ng5 {[%emt 0:11:51]} Qc7 {[%emt 0:08:52]} 13. Ndxe4 {[%emt 0:04:41]} h6 {[%emt 0:02:46]} 14. Nh3 {[%emt 0:06:53]} Nxe4 $11 {[%emt 0:07:26]} 15. Bxe4 {[%emt 0:00:34]} Nf6 {[%emt 0:00:05]} 16. Bc2 {[%emt 0:02:43]} Rfd8 {[%emt 0:04:25]} 17. Nf4 {[%emt 0:11:44]} b5 {[%emt 0:08:28]} 18. Qd3 {[%emt 0:03:56]} bxc4 {[%emt 0:01:55]} 19. bxc4 {[%emt 0:00:18]} Rb8 {[%emt 0:02:16]} 20. Rab1 {[%emt 0:09:44]} Rb4 {[%emt 0:00:59]} 21. Nh5 {[%emt 0:06:06]} g6 {[%emt 0:02:08]} 22. Nxf6+ {[%emt 0:05:44]} Bxf6 {[%emt 0:00:05]} 23. Bb3 {[%emt 0:01:32]} c5 {[%emt 0:02:46]} 24. Re4 {[%emt 0:05:14]} cxd4 {[%emt 0:01:08]} 25. Bxd4 {[%emt 0:01:10]} Bb7 {[%emt 0:00:16]} 26. Rf4 {[%emt 0:00:59]} Qc6 {[%emt 0:00:32]} 27. f3 {[%emt 0:00:16]} Bxd4+ {[%emt 0:00:47]} 28. Rxd4 {[%emt 0:00:04]} Rxd4 {[%emt 0:00:04]} 29. Qxd4 {[%emt 0:00:02]} Qxf3 {[%emt 0:00:09]} 30. Rb2 {[%emt 0:00:42]} Bc6 {[%emt 0:01:29]} 31. Rd2 {[%emt 0:01:09]} Rb7 {[%emt 0:00:30]} 32. Qb2 {[%emt 0:00:43]} Rd7 {[%emt 0:00:22]} 0-1